[Event "2nd Serbia Open Masters 2022"]
[Site "Novi Sad"]
[Date "2022.06.30"]
[Round "3.6"]
[White "Ceres, Dragos"]
[Black "Puranik, Abhimanyu"]
[Result "1/2-1/2"]
[ECO "B22"]
[WhiteElo "2380"]
[BlackElo "2608"]
[Annotator "TA"]
[PlyCount "36"]
[EventDate "2022.06.28"]
[EventType "swiss"]
[EventCountry "SRB"]
[SourceTitle "playchess.com"]
[Source "ChessBase"]
[SourceQuality "1"]
[TimeControl "40/5400+30:900+30"]

{[%evp 13,36,0,0,4,4,0,0,0,0,0,0,0,0,0,15,0,0,0,0,-9,26,25,33,17,20]} 1. e4 {[%emt 0:00:13]} c5 {[%emt 0:00:30]} 2. c3 {[%emt 0:00:11]} Nf6 {[%emt 0:00:16]} 3. e5 {[%emt 0:00:20]} Nd5 {[%emt 0:00:04]} 4. d4 {[%emt 0:00:07]} cxd4 {[%emt 0:00:10]} 5. cxd4 {[%emt 0:00:12]} e6 {[%emt 0:00:08]} 6. Nf3 {[%emt 0:00:13]} d6 {[%emt 0:00:34]} 7. Bc4 {[%emt 0:00:13]} Be7 {[%emt 0:00:27]} 8. O-O {[%emt 0:00:21] B22: Sicilian: 2 c3.} O-O {[%emt 0:00:13]} 9. Bd2 {[%emt 0:01:19]} dxe5 {[%emt 0:03:13]} 10. dxe5 {[%emt 0:02:36]} Bd7 {[%emt 0:00:22]} 11. Nc3 {[%emt 0:00:28]} Bc6 {[%emt 0:00:36]} 12. Qe2 {[%emt 0:02:23]} Nxc3 {[%emt 0:07:06]} 13. Bxc3 {[%emt 0:00:10] [#]} Qb6 $146 {[%emt 0:00:04]} ({Predecessor:} 13... Bxf3 14. Qxf3 Nc6 15. Rfd1 Qc7 16. Qe4 Rfd8 17. h4 Rxd1+ 18. Rxd1 Rd8 19. Rc1 Qb6 {0-1 (35) Ynojosa Aponte,F (2393)-Praggnanandhaa,R (2608) Chess.com INT 2020}) 14. Rfd1 {[%emt 0:14:33]} Bxf3 {[%emt 0:07:28]} 15. Qxf3 {[%emt 0:03:23][%cal Ob2b4]} Nc6 {[%emt 0:01:47]} 16. a3 {[%emt 0:05:09]} Bc5 {[%emt 0:02:59]} 17. Rd7 {[%emt 0:03:18]} Rad8 {[%emt 0:22:52]} 18. Rad1 {[%emt 0:00:12] Threatens to win with b4.} a5 {[%emt 0:03:40] Inhibits b4. A balanced but interesting game.  Weighted Error Value: White=0.04 (flawless) /Black=0.05 (flawless)} 1/2-1/2

[Event "2nd Serbia Open Masters 2022"]
[Site "Novi Sad"]
[Date "2022.06.30"]
[Round "3.7"]
[White "Can, Emre"]
[Black "Ohanyan, Emin"]
[Result "1-0"]
[ECO "E04"]
[WhiteElo "2599"]
[BlackElo "2366"]
[Annotator "TA"]
[PlyCount "127"]
[EventDate "2022.06.28"]
[EventType "swiss"]
[EventCountry "SRB"]
[SourceTitle "playchess.com"]
[Source "ChessBase"]
[SourceQuality "1"]
[TimeControl "40/5400+30:900+30"]

{[%evp 14,127,4,12,6,0,21,9,79,90,64,86,70,44,60,37,42,0,0,36,20,0,0,0,57,58,61,90,231,203,255,177,172,179,173,179,164,179,185,187,188,172,179,177,176,160,181,154,170,156,180,178,196,192,240,213,256,178,185,181,185,167,214,156,160,139,139,131,138,139,139,139,155,155,236,227,372,379,387,386,379,372,387,379,372,357,596,454,561,357,331,331,571,559,845,308,683,441,1577,1370,907,576,29960,29961,29959,29960,29970,29972,29976,29973,29976,29977,29975,29975,29988,29989]} 1. d4 {[%emt 0:00:05]} Nf6 {[%emt 0:00:05]} 2. c4 {[%emt 0:00:08]} e6 {[%emt 0:00:03]} 3. g3 {[%emt 0:00:13]} d5 {[%emt 0:00:06]} 4. Bg2 {[%emt 0:00:35]} dxc4 {[%emt 0:00:25]} 5. Nf3 {[%emt 0:00:18]} a6 {[%emt 0:00:04]} 6. O-O {[%emt 0:00:24]} Nc6 {[%emt 0:00:08]} 7. a4 {[%emt 0:00:08]} Rb8 {[%emt 0:50:56]} 8. a5 {[%emt 0:00:36]} Bb4 {[%emt 0:07:23] E04: Open Catalan: 5 Nf3.} 9. Na3 {[%emt 0:07:39]} c3 {[%emt 0:08:01]} 10. Qb3 {[%emt 0:03:51] [#]} O-O $146 {[%emt 0:13:37]} (10... cxb2 $11 11. Bxb2 Be7) ({Predecessor:} 10... cxb2 11. Bxb2 Bxa5 12. Nc4 Bb6 13. Nxb6 cxb6 14. Ne5 Na5 15. Qa3 Nd7 16. Qe3 O-O 17. Rfd1 Nxe5 18. dxe5 Bd7 19. Rd4 Qc8 20. Rg4 Kh8 21. Qg5 Rg8 22. Rh4 g6 23. Rd1 {1-0 (23) Massimini Gerbino,M (2121)-Van Seben,E (2110) IECG email 2002}) 11. bxc3 $16 {[%emt 0:02:34]} Bxa5 {[%emt 0:01:27]} 12. Nc4 {[%emt 0:02:28]} Bb6 {[%emt 0:00:13]} 13. Qc2 {[%emt 0:26:26] White is more active.} Ba7 {[%emt 0:00:39]} 14. Bg5 {[%emt 0:08:15]} h6 {[%emt 0:01:08]} 15. Bh4 {[%emt 0:00:36]} Ne7 $1 {[%emt 0:02:12]} 16. Bxf6 {[%emt 0:01:45]} gxf6 {[%emt 0:00:03]} 17. e4 {[%emt 0:01:28]} b5 {[%emt 0:01:30]} 18. Ne3 {[%emt 0:00:25]} b4 {[%emt 0:00:13]} (18... c5 $11) 19. cxb4 {[%emt 0:01:19]} Rxb4 {[%emt 0:01:51]} 20. Ng4 $36 {[%emt 0:12:58][%mdl 2048] And now Qd2 would win. Keeping Black busy.} Ng6 {[%emt 0:00:15] This move loses the game for Black.} (20... f5 $16 21. Nf6+ (21. Nxh6+ Kg7 $11) 21... Kg7) 21. Qd2 $18 {[%emt 0:01:09]} (21. Nxh6+ Kg7 $11) 21... Rxd4 {[%emt 0:03:09]} 22. Nxd4 {[%emt 0:01:08]} ({Stronger than} 22. Nxh6+ Kg7 23. Nxd4 Qxd4 24. Qxd4 Bxd4 $11) 22... Qxd4 {[%emt 0:02:32]} 23. Qxh6 {[%emt 0:01:21]} f5 {[%emt 0:00:16]} 24. exf5 {[%emt 0:02:04] Dancing on a razor blade.} exf5 {[%emt 0:02:32]} 25. Ne3 {[%emt 0:00:21]} f4 {[%emt 0:01:58]} 26. Nd5 {[%emt 0:00:31]} fxg3 {[%emt 0:00:06]} 27. hxg3 {[%emt 0:00:06]} c6 {[%emt 0:00:21]} 28. Ne3 {[%emt 0:02:07]} Qg7 {[%emt 0:00:47]} 29. Qxg7+ {[%emt 0:01:32]} Kxg7 {[%emt 0:00:03]} 30. Bxc6 {[%emt 0:00:36]} Ne5 {[%emt 0:00:09]} 31. Bg2 {[%emt 0:00:33]} Re8 {[%emt 0:01:53]} 32. Rfe1 {[%emt 0:03:00]} Rd8 {[%emt 0:01:46]} 33. Rad1 {[%emt 0:02:44]} Rh8 {[%emt 0:00:25]} (33... Re8 $142 34. Rd5 f6) 34. Rd5 {[%emt 0:02:07]} f6 {[%emt 0:00:32]} 35. Rc1 {[%emt 0:00:48]} Bxe3 {[%emt 0:00:28]} 36. fxe3 {[%emt 0:00:09]} Bf5 {[%emt 0:00:39]} 37. Rd6 {[%emt 0:00:49]} Rb8 {[%emt 0:00:33]} (37... a5 {keeps fighting.} 38. Rf1 Nc4) 38. Rxa6 {[%emt 0:01:48]} Rb3 {[%emt 0:00:15]} 39. Re1 {[%emt 0:02:32]} Kg6 {[%emt 0:00:16]} 40. Ra2 {[%emt 0:00:00]} Kg5 {[%emt 0:00:00]} 41. Ra8 {[%emt 0:04:45]} Be6 {[%emt 0:04:23]} 42. Ra4 {[%emt 0:02:27]} Bc4 {[%emt 0:04:58]} 43. Ra7 {[%emt 0:02:30]} Be6 {[%emt 0:02:39] [#]} (43... Nd3 $16) 44. Rg7+ $1 {[%emt 0:00:38]} Kh6 {[%emt 0:00:05] [#]} (44... Ng6 $142 45. Kf2 Ra3) 45. Rb7 $1 {[%emt 0:00:29]} Kg5 {[%emt 0:00:49]} 46. Rxb3 {[%emt 0:00:27]} Bxb3 {[%emt 0:00:04][%mdl 4096] Endgame KRB-KBN} 47. Rb1 {[%emt 0:00:56]} Bc2 {[%emt 0:00:16]} 48. Rb8 {[%emt 0:00:16]} Bd1 {[%emt 0:00:21]} 49. Bh3 {[%emt 0:01:39]} Bh5 $2 {[%emt 0:00:32]} (49... Bc2 {was called for.} 50. Rg8+ Kh6) 50. Rg8+ {[%emt 0:00:35]} Kh6 {[%emt 0:00:07]} 51. Kf2 {[%emt 0:01:28]} Nd3+ {[%emt 0:00:07]} 52. Kf1 {[%emt 0:00:25]} Ne5 $2 {[%emt 0:00:19]} (52... Bf7) 53. Be6 {[%emt 0:00:57]} Kh7 {[%emt 0:00:39]} 54. Kg2 $2 {[%emt 0:00:43]} (54. g4) 54... Bg6 {[%emt 0:00:19]} (54... f5 55. Rf8 Bg6) 55. Rb8 {[%emt 0:00:42]} Kh6 {[%emt 0:00:42]} (55... Kg7 $142 56. Bd5 Bd3) 56. g4 {[%emt 0:00:23] Threatens to win with Kg3.} Kg5 {[%emt 0:00:24]} 57. Kg3 {[%emt 0:00:07] Rh8 is the strong threat.} Bh7 {[%emt 0:00:10]} 58. Rh8 {[%emt 0:03:04] White mates.} Bg6 {[%emt 0:00:55]} 59. Bf5 {[%emt 0:00:12]} Bf7 {[%emt 0:00:28]} 60. Rh7 {[%emt 0:00:26]} Be8 {[%emt 0:00:27]} 61. Rg7+ {[%emt 0:00:27]} Kh6 {[%emt 0:00:13]} 62. Re7 {[%emt 0:00:15]} Bf7 {[%emt 0:01:06]} 63. Kf4 {[%emt 0:00:21]} Bg8 {[%emt 0:00:03]} 64. g5+ {[%emt 0:00:15] Weighted Error Value: White=0.25 (precise) /Black=0.42} 1-0

[Event "2nd Serbia Open Masters 2022"]
[Site "Novi Sad"]
[Date "2022.06.30"]
[Round "3.8"]
[White "Sanal, Vahap"]
[Black "Tomazini, Zan"]
[Result "1-0"]
[ECO "B52"]
[WhiteElo "2575"]
[BlackElo "2359"]
[Annotator "TA"]
[PlyCount "81"]
[EventDate "2022.06.28"]
[EventType "swiss"]
[EventCountry "SRB"]
[SourceTitle "playchess.com"]
[Source "ChessBase"]
[SourceQuality "1"]
[TimeControl "40/5400+30:900+30"]

{[%evp 13,81,51,65,43,56,29,62,44,49,0,4,0,29,0,0,0,60,66,119,83,130,106,118,120,120,114,122,117,105,45,50,26,41,0,0,0,0,10,6,9,14,0,0,0,406,154,783,820,827,821,777,803,772,771,916,875,1125,1106,1270,1221,1379,1327,5404,4882,29983,29984,29984,29982,29979,5804]} 1. e4 {[%emt 0:00:31]} c5 {[%emt 0:04:42]} 2. Nf3 {[%emt 0:00:20]} d6 {[%emt 0:00:10]} 3. Bb5+ {[%emt 0:00:38]} Bd7 {[%emt 0:02:25]} 4. Bxd7+ {[%emt 0:00:21]} Nxd7 {[%emt 0:00:32]} 5. O-O {[%emt 0:00:28]} g6 {[%emt 0:03:15]} 6. c3 {[%emt 0:01:09]} Bg7 {[%emt 0:02:28]} 7. d4 {[%emt 0:00:10]} Qc7 {[%emt 0:01:38]} 8. Re1 {[%emt 0:02:25] [#] B52: Sicilian: Moscow Variation with 3...Bd7.} Rd8 $146 {[%emt 0:05:16]} ({Predecessor:} 8... Rc8 9. Bf4 Qb6 10. Qe2 Ngf6 11. e5 dxe5 12. dxe5 Nd5 13. Bg3 e6 14. Na3 O-O 15. Rad1 Rfd8 {1-0 (77) Bartel,M (2609)-Suliborski,J (2122) Zgierz 2018}) 9. Na3 {[%emt 0:09:08]} a6 {[%emt 0:01:05]} 10. Qe2 {[%emt 0:01:58] White is slightly better.} e5 {[%emt 0:02:17]} 11. dxc5 {[%emt 0:07:29]} Nxc5 {[%emt 0:06:41]} 12. Bg5 {[%emt 0:08:05]} Rd7 {[%emt 0:02:18]} 13. Nc4 {[%emt 0:02:10]} f6 {[%emt 0:11:39]} 14. Be3 {[%emt 0:01:36]} Nxe4 {[%emt 0:06:29]} ({Better is} 14... Ne7 $1 $11) 15. Bb6 $14 {[%emt 0:09:08]} Qc6 {[%emt 0:14:04]} 16. Nd4 {[%emt 0:01:45]} Qd5 {[%emt 0:00:20]} (16... exd4 $142 17. Qxe4+ Ne7 18. Qxd4 O-O) 17. Ba7 {[%emt 0:04:36] White is more active.} (17. Qxe4 Qxc4 18. Rad1 Ne7 $17) 17... f5 {[%emt 0:14:33]} 18. Nb6 {[%emt 0:03:33]} Qf7 {[%emt 0:00:57]} 19. Nxd7 {[%emt 0:00:45]} Qxd7 {[%emt 0:02:25]} 20. f3 {[%emt 0:03:24]} Ng5 {[%emt 0:00:55]} 21. f4 {[%emt 0:02:29]} (21. Rad1 $16) 21... Ne4 {[%emt 0:01:53]} 22. Nf3 {[%emt 0:03:10]} exf4 {[%emt 0:02:53]} 23. Qd2 {[%emt 0:03:35]} Be5 {[%emt 0:02:25]} 24. Qc2 {[%emt 0:10:11]} Ne7 {[%emt 0:02:59]} 25. Rad1 $36 {[%emt 0:02:06][%mdl 2048] White fights for an advantage.} Qe6 {[%emt 0:01:30]} 26. Nd2 {[%emt 0:08:48]} Nc6 {[%emt 0:01:08] Pair of Knights!} 27. Bb6 {[%emt 0:00:36]} (27. Nxe4 fxe4 28. Bb6 (28. Qxe4 Nxa7 29. Qxb7 Nc8 $17) 28... e3 $15) 27... Nf6 {[%emt 0:03:16]} (27... d5 28. Qb3 Kf7 29. Nf3 $16) 28. Qa4 {[%emt 0:03:29] Strongly threatening Nc4.} g5 $2 {[%emt 0:02:03][%mdl 8192]} (28... Ke7 $11) 29. Nf3 $2 {[%emt 0:00:50]} (29. Nc4 $18 {is the precise move to win. Rxd6 is the strong threat.} Kf7 {[#]} 30. Nxd6+ $1 {[%mdl 512]} Kg7 31. Nxb7) 29... h6 $2 {[%emt 0:00:24] A mistake that costs the game.} (29... O-O $16) 30. Nxe5 $18 {[%emt 0:00:17]} dxe5 {[%emt 0:00:07]} 31. Rd8+ $1 {[%emt 0:00:08][%mdl 64] [#] Skewer} Kf7 {[%emt 0:00:58]} 32. Rxh8 {[%emt 0:00:08]} Kg7 {[%emt 0:00:02]} 33. Ra8 {[%emt 0:00:27]} f3 {[%emt 0:00:33]} 34. Qb3 {[%emt 0:01:41]} Qe7 {[%emt 0:01:05]} 35. gxf3 {[%emt 0:00:25]} e4 {[%emt 0:00:25]} 36. Bd4 {[%emt 0:00:46]} Nxd4 {[%emt 0:00:41]} 37. cxd4 {[%emt 0:00:05] Threatens to win with Ra7.} Qd6 {[%emt 0:01:07]} 38. fxe4 {[%emt 0:01:08]} fxe4 {[%emt 0:01:05]} 39. Qxb7+ {[%emt 0:00:29] White mates.} Kg6 {[%emt 0:00:04]} 40. Rxa6 {[%emt 0:00:00]} ({Not} 40. Ra7 Qxd4+ 41. Kf1 (41. Kh1 Qf2 $11) 41... Qd3+ 42. Kg1 Qd4+ 43. Kg2 (43. Kh1 Qf2 $11) 43... Qd2+ 44. Kf1 Qd3+ 45. Kg1 Qd4+ $11) 40... Qxd4+ {[%emt 0:00:00]} 41. Kh1 {[%emt 0:00:15] Weighted Error Value: White=0.38/Black=0.58} 1-0

[Event "2nd Serbia Open Masters 2022"]
[Site "Novi Sad"]
[Date "2022.06.30"]
[Round "3.9"]
[White "Fataliyeva, Ulviyya"]
[Black "Perunovic, Milos"]
[Result "1/2-1/2"]
[ECO "A57"]
[WhiteElo "2348"]
[BlackElo "2544"]
[Annotator "TA"]
[PlyCount "92"]
[EventDate "2022.06.28"]
[EventType "swiss"]
[EventCountry "SRB"]
[SourceTitle "playchess.com"]
[Source "ChessBase"]
[SourceQuality "1"]
[TimeControl "40/5400+30:900+30"]

{[%evp 9,92,31,48,16,13,10,29,0,15,17,14,14,16,21,18,19,17,16,32,25,38,37,87,81,92,91,87,47,88,69,71,78,80,77,100,79,125,84,152,148,133,95,102,47,166,137,204,0,0,0,0,0,8,0,7,8,8,8,8,7,16,0,8,0,0,0,0,-8,-8,-12,-16,-126,-124,-121,-104,-139,-69,-83,-72,-74,0,-85,-101,-101,0]} 1. d4 {[%emt 0:06:16]} Nf6 {[%emt 0:00:41]} 2. c4 {[%emt 0:00:06]} c5 {[%emt 0:00:22]} 3. d5 {[%emt 0:00:05]} b5 {[%emt 0:00:06]} 4. cxb5 {[%emt 0:00:05]} a6 {[%emt 0:00:06]} 5. e3 {[%emt 0:00:05]} g6 {[%emt 0:05:08]} 6. h4 {[%emt 0:00:32] A57: Benko/Volga Gambit.} Bg7 {[%emt 0:09:56]} 7. Nc3 {[%emt 0:01:55]} O-O {[%emt 0:02:54]} 8. a4 {[%emt 0:00:08] White has an edge.} (8. h5 {with more complications.} axb5 9. hxg6 hxg6 10. Bxb5 e6 11. dxe6 dxe6 12. Qf3) 8... Bb7 {[%emt 0:10:46]} 9. Nf3 {[%emt 0:00:20]} e6 {[%emt 0:00:13]} 10. dxe6 {[%emt 0:00:05]} dxe6 {[%emt 0:00:05]} 11. Qxd8 {[%emt 0:00:05]} Rxd8 {[%emt 0:00:06]} 12. Bd2 {[%emt 0:00:05] [#]} axb5 $146 {[%emt 0:26:24]} ({Predecessor:} 12... Ne8 13. Rc1 axb5 14. axb5 Nd7 15. Be2 Nb6 16. h5 Nd6 17. Rh4 Ra7 18. Nd1 Bf6 {½-½ (26) Leimgruber,R (2452)-Laghetti,G (2472) ICCF email 2017}) 13. Bxb5 {[%emt 0:00:06]} Nc6 {[%emt 0:00:03]} 14. Ke2 {[%emt 0:17:17]} Na5 {[%emt 0:04:42]} 15. Rhd1 {[%emt 0:05:54]} Nb3 {[%emt 0:14:43]} (15... Ne8 $14) 16. Ra3 $16 {[%emt 0:03:23]} Nxd2 {[%emt 0:00:47]} 17. Nxd2 {[%emt 0:08:30][%cal Bf3d2,Bd2c4,Bc4d6][%mdl 32]} Nd5 {[%emt 0:02:10]} ({But not} 17... Bxg2 $6 18. a5 $11) 18. Nc4 {[%emt 0:06:20]} Rdb8 {[%emt 0:10:23]} 19. Nd6 {[%emt 0:17:02]} Nxc3+ {[%emt 0:04:10]} 20. bxc3 {[%emt 0:01:27]} Bxg2 {[%emt 0:00:07][%cal Oc5c4]} 21. f3 {[%emt 0:06:35]} e5 {[%emt 0:00:07][%cal Oe5e4]} 22. c4 {[%emt 0:01:08] White is more active.} Rd8 {[%emt 0:02:08]} (22... Bf6 $142) 23. Rad3 {[%emt 0:02:41]} f5 {[%emt 0:00:07]} (23... Bf6 $142) 24. e4 {[%emt 0:02:36]} Bh3 {[%emt 0:01:44]} 25. Kf2 {[%emt 0:10:29]} f4 {[%emt 0:02:21]} 26. Nb7 {[%emt 0:00:11]} (26. Rd5 $16) 26... Rd4 {[%emt 0:00:52]} ({Black should try} 26... Rxd3 $14 27. Rxd3 Bf6) 27. Nxc5 $18 {[%emt 0:01:11]} Bf6 {[%emt 0:00:05]} (27... Bf8 $16) 28. Nb3 $2 {[%emt 0:02:07]} (28. Rxd4 $18 Bxh4+ 29. Ke2 exd4 30. Nd3 (30. Rxd4 Be7 $16)) 28... Bxh4+ $11 {[%emt 0:00:07]} 29. Ke2 {[%emt 0:00:17]} Rxd3 {[%emt 0:00:08]} 30. Rxd3 {[%emt 0:00:14]} g5 {[%emt 0:00:06]} 31. a5 {[%emt 0:01:24] Threatens to win with Bd7.} g4 {[%emt 0:00:38]} 32. Bd7 $1 {[%emt 0:01:00]} h5 {[%emt 0:01:28]} 33. c5 {[%emt 0:02:45] White wants to play c6.} Bg2 {[%emt 0:00:05]} 34. fxg4 {[%emt 0:00:08]} Bxe4 {[%emt 0:01:56] This bishop pair is nice.} 35. Rh3 {[%emt 0:04:43]} Bd8 {[%emt 0:01:36]} 36. Rxh5 {[%emt 0:00:25]} Bd5 {[%emt 0:00:22]} 37. Nd2 {[%emt 0:00:31]} Bc7 {[%emt 0:00:13]} 38. Bf5 {[%emt 0:00:40]} Rxa5 {[%emt 0:00:14]} 39. Rh7 {[%emt 0:00:27]} Rxc5 {[%emt 0:00:11]} 40. Rd7 {[%emt 0:00:00] [#]} (40. Ne4 $11 Bxe4 41. Bxe4) 40... Bc6 $1 $17 {[%emt 0:00:00]} 41. Re7 {[%emt 0:06:29] [#]} Kf8 $1 {[%emt 0:05:40]} 42. Rh7 {[%emt 0:00:30] [#]} (42. Re6 Rc3) 42... Rc3 $1 {[%emt 0:07:31]} 43. Rh8+ {[%emt 0:07:49]} Kg7 {[%emt 0:00:33]} 44. Rh7+ {[%emt 0:00:04]} Kf8 {[%emt 0:01:12] ...f3+ is the strong threat.} (44... Kf6 $5 {[%cal Rf4f3]} 45. Rh6+ Ke7 46. Rh7+ Kd6 47. Rd7+ Bxd7 48. Ne4+ Ke7 49. Nxc3 Be8 $17) 45. Rh8+ $1 {[%emt 0:00:04]} Ke7 {[%emt 0:03:45] White must now prevent ...Ba5.} 46. Rh7+ {[%emt 0:00:03] [#]} Kf8 {[%emt 0:00:49] Weighted Error Value: White=0.25 (precise) /Black=0.20 (precise)} (46... Kd6 $1 $17 47. Rd7+ Bxd7 48. Ne4+ Ke7 49. Nxc3 Be8) 1/2-1/2

[Event "2nd Serbia Open Masters 2022"]
[Site "Novi Sad"]
[Date "2022.06.30"]
[Round "3.11"]
[White "Arnaudov, G. Petar"]
[Black "Padmini, Rout"]
[Result "1/2-1/2"]
[ECO "D03"]
[WhiteElo "2467"]
[BlackElo "2348"]
[Annotator "TA"]
[PlyCount "111"]
[EventDate "2022.06.28"]
[EventType "swiss"]
[EventCountry "SRB"]
[SourceTitle "playchess.com"]
[Source "ChessBase"]
[SourceQuality "1"]
[TimeControl "40/5400+30:900+30"]

{[%evp 11,111,2,0,0,7,4,21,16,13,21,21,8,8,8,21,21,16,0,0,0,0,-47,-18,-13,0,-55,-57,-66,-52,-77,-61,-69,-69,-72,-79,-72,-73,-77,-86,-71,-44,-44,-44,-60,-52,-95,-102,-102,-102,-102,-102,-102,-102,-102,-100,-100,-92,-92,-85,-102,-102,-102,-55,-118,-118,-118,-118,-118,-118,-118,-118,-118,-118,-118,-118,-118,-118,-118,-118,-118,-118,-118,-118,-118,-118,-118,0,-118,-118,-118,-118,-118,-118,-118,-118,-118,-118,-118,-118,-118,0,-118]} 1. d4 {[%emt 0:00:07]} Nf6 {[%emt 0:01:54]} 2. Nf3 {[%emt 0:01:11]} g6 {[%emt 0:00:12]} 3. Bg5 {[%emt 0:00:06]} Bg7 {[%emt 0:00:32]} 4. Nbd2 {[%emt 0:00:12]} d5 {[%emt 0:05:12]} 5. c3 {[%emt 0:00:19]} O-O {[%emt 0:00:14]} 6. e3 {[%emt 0:00:06]} b6 {[%emt 0:01:06]} 7. h3 {[%emt 0:05:56] D03: 1 d4 d5 2 Nf3 Nf6 3 Bg5, including Torre Attack with early ...d5.} c5 {[%emt 0:01:54]} 8. Be2 {[%emt 0:00:38]} Ba6 {[%emt 0:01:54]} 9. Bxa6 {[%emt 0:00:05]} Nxa6 {[%emt 0:00:06]} 10. O-O {[%emt 0:00:14] [#]} Qc8 $146 {[%emt 0:01:49]} ({Predecessor:} 10... Qd7 11. Qe2 Qb7 12. Rfe1 Ne4 13. Bxe7 Rfe8 14. Bh4 f5 15. Nxe4 fxe4 16. Nh2 c4 17. f4 exf3 18. gxf3 {1-0 (18) Jugelt,T (2375)-Hybl,J (2235) Pardubice 1996}) 11. Qa4 {[%emt 0:02:30]} Qb7 {[%emt 0:01:43]} 12. b4 {[%emt 0:00:26]} b5 {[%emt 0:12:27]} 13. Qb3 {[%emt 0:09:59]} c4 {[%emt 0:11:47]} 14. Qc2 {[%emt 0:02:18]} Nc7 {[%emt 0:00:07]} 15. a4 {[%emt 0:03:02]} a5 {[%emt 0:00:54] Threatens to win with ...axb4.} 16. Rab1 {[%emt 0:02:25]} (16. Rfb1 $11 {should be considered.}) 16... Qa6 {[%emt 0:04:25]} (16... Rfc8 {seems wilder.} 17. Ne5 e6 18. Bh4 Nfe8) 17. Bf4 {[%emt 0:01:35]} Nfe8 {[%emt 0:05:14]} 18. e4 {[%emt 0:08:42]} (18. bxa5 $11 Qxa5 19. axb5 Nxb5 20. Rb4) 18... bxa4 $15 {[%emt 0:06:47]} 19. Qxa4 {[%emt 0:03:12]} axb4 {[%emt 0:03:35]} 20. Qxb4 {[%emt 0:02:33] [#]} dxe4 $1 {[%emt 0:02:06]} 21. Bxc7 {[%emt 0:03:33][%cal Od2e4]} ({Not} 21. Qxe7 $2 exf3 22. Bxc7 Ra7 $19) ({Wrong is} 21. Nxe4 $2 Nd5 22. Qc5 Nxf4 $19) 21... exf3 {[%emt 0:10:24]} 22. Bg3 {[%emt 0:00:10]} fxg2 {[%emt 0:00:16]} 23. Rfe1 {[%emt 0:00:15]} Nf6 {[%emt 0:03:55]} 24. Qxc4 {[%emt 0:00:52]} Qxc4 {[%emt 0:03:43]} 25. Nxc4 {[%emt 0:00:31]} Rac8 {[%emt 0:00:17]} 26. Nb6 {[%emt 0:00:24]} Rxc3 {[%emt 0:01:44]} 27. Rxe7 {[%emt 0:02:21]} Nh5 {[%emt 0:00:53]} 28. Nd5 {[%emt 0:03:15]} Rd3 {[%emt 0:06:33]} 29. Nf4 {[%emt 0:01:09]} Nxf4 {[%emt 0:01:21]} ({Much worse is} 29... Rxd4 $6 30. Nxh5 gxh5 31. Kxg2 $11) 30. Bxf4 {[%emt 0:00:06]} Rxd4 {[%emt 0:00:26]} 31. Be3 {[%emt 0:00:46]} Rd5 {[%emt 0:00:15]} 32. Kxg2 {[%emt 0:00:11]} h5 {[%emt 0:01:35]} 33. Rbb7 {[%emt 0:00:21]} Rf5 {[%emt 0:00:18]} 34. Red7 {[%emt 0:00:25]} Rc8 {[%emt 0:00:38]} 35. Rdc7 {[%emt 0:00:18]} Rxc7 {[%emt 0:01:22]} 36. Rxc7 $17 {[%emt 0:00:05][%mdl 4096] Endgame KRB-KRB} g5 {[%emt 0:00:21]} ({Better is} 36... Bf6 $17 37. Rc4 Bg5) 37. Rc5 {[%emt 0:00:19]} (37. Rc4 $15) 37... Rxc5 {[%emt 0:00:45]} 38. Bxc5 {[%emt 0:00:05] KB-KB} f5 {[%emt 0:00:38]} 39. Be7 {[%emt 0:00:39] [#]} Bh6 $1 {[%emt 0:00:11]} 40. f3 {[%emt 0:00:00]} Kf7 {[%emt 0:00:00]} 41. Bd8 {[%emt 0:00:27]} Kg6 {[%emt 0:00:18]} 42. Be7 {[%emt 0:00:23]} Bg7 {[%emt 0:00:06]} 43. Bb4 {[%emt 0:00:06]} Be5 {[%emt 0:02:22]} 44. Ba5 {[%emt 0:01:00]} Bf4 {[%emt 0:05:09]} 45. Kf2 {[%emt 0:00:06]} Kf6 {[%emt 0:00:20]} 46. Bd8+ {[%emt 0:00:16]} Ke6 {[%emt 0:00:58]} 47. Ke2 {[%emt 0:00:06]} Kf7 {[%emt 0:02:36]} 48. Kf2 {[%emt 0:01:09]} Kg6 {[%emt 0:00:05]} ({Black should try} 48... Bc1 $17 49. Ke2 Kg6) 49. Ke2 {[%emt 0:00:14]} (49. Ba5 $1 $11 {was the only way to keep the balance.}) 49... Be5 {[%emt 0:00:04]} 50. Kf1 {[%emt 0:00:29]} Bf6 {[%emt 0:00:07]} 51. Bc7 {[%emt 0:00:05]} Kf7 {[%emt 0:00:07]} 52. Ke2 {[%emt 0:00:24]} Ke6 {[%emt 0:00:06]} 53. Ba5 {[%emt 0:00:42]} Kd5 {[%emt 0:00:28]} 54. Bd2 {[%emt 0:00:41]} Kd4 {[%emt 0:00:24]} 55. Be3+ {[%emt 0:00:22]} Kd5 {[%emt 0:02:01]} 56. Bd2 $1 {[%emt 0:00:23] Weighted Error Value: White=0.12 (very precise) /Black=0.07 (flawless)} 1/2-1/2